fUST/lending_fUST_20241116
["ID","MTS","AMOUNT","RATE_DAILY","PERIOD"]
[342267264,1731687045132,-164.170092,0.00014246,2]
[342267265,1731687045144,-164.170092,0.00014246,2]
[342267266,1731687045153,-164.170092,0.00014246,2]
[342267267,1731687045163,-164.170092,0.00014246,2]
[342267268,1731687045172,-151.0,0.00014246,2]
[342267269,1731687045181,-151.0,0.00014246,2]
[342267270,1731687045190,-179.517469,0.00014246,2]
[342267271,1731687045200,-176.289098,0.00014246,2]
[342267272,1731687045209,-176.289098,0.00014246,2]
[342267273,1731687045218,-176.289098,0.00014246,2]
[342267274,1731687045228,-176.289098,0.00014246,2]
[342267275,1731687045237,-151.0,0.00014246,2]
[342267276,1731687045246,-500.0,0.00014246,2]
[342267277,1731687045255,-151.0,0.00014246,2]
[342267278,1731687045381,-151.0,0.00014246,2]
[342267279,1731687045394,-151.0,0.00014246,2]
[342267280,1731687045406,-151.0,0.00014246,2]
[342267281,1731687045415,-532.18,0.00014246,2]
[342267282,1731687045424,-151.0,0.00014246,2]
[342267283,1731687045433,-151.0,0.00014246,2]
[342267284,1731687045442,-500.0,0.00014246,2]
[342267285,1731687045452,-500.0,0.00014246,2]
[342267286,1731687045462,-500.0,0.00014246,2]
[342267287,1731687045471,-553.74,0.00014246,2]
[342267288,1731687045480,-151.0,0.00014246,2]
[342267289,1731687045490,-151.0,0.00014246,2]
[342267290,1731687045499,-151.0,0.00014246,2]
[342267292,1731687045508,-151.0,0.00014246,2]
[342267293,1731687045517,-151.0,0.00014246,2]
[342267295,1731687045526,-151.0,0.00014246,2]
[342267296,1731687045536,-299.76104,0.00014246,2]
[342267297,1731687045545,-151.0,0.00014246,2]
[342267298,1731687045554,-151.0,0.00014246,2]
[342267300,1731687045563,-151.0,0.00014246,2]
[342267302,1731687045572,-249.730646,0.00014246,2]
[342267304,1731687045582,-500.0,0.00014246,2]
[342267305,1731687045591,-503.42,0.00014246,2]
[342267306,1731687045600,-2336.0,0.00014246,2]
[342267308,1731687045609,-2511.61,0.00014246,2]
[342267309,1731687045619,-2156.2,0.00014246,2]
[342267310,1731687045627,-451.781197,0.00014246,2]
[342267311,1731687045637,-451.781197,0.00014246,2]
[342267312,1731687045651,-451.781197,0.00014246,2]
[342267314,1731687045661,-451.781197,0.00014246,2]
[342267315,1731687045672,-151.0,0.00014246,2]
[342267316,1731687045681,-191.97860542,0.00014246,2]
[342267317,1731687045691,-500.0,0.00014246,2]
[342267318,1731687045701,-500.0,0.00014246,2]
[342267319,1731687045711,-500.0,0.00014246,2]
[342267320,1731687045720,-500.0,0.00014246,2]
[342267321,1731687045729,-500.0,0.00014246,2]
[342267322,1731687045739,-151.0,0.00014246,2]
[342267323,1731687045752,-151.0,0.00014246,2]
[342267324,1731687045762,-151.0,0.00014246,2]
[342267325,1731687045771,-274.024423,0.00014246,2]
[342267326,1731687045781,-614.37,0.00014246,2]
[342267327,1731687045790,-500.0,0.00014246,2]
[342267328,1731687045800,-224.547576,0.00014246,2]
[342267329,1731687045810,-414.73,0.00014246,2]
[342267331,1731687045819,-500.0,0.00014246,2]
[342267333,1731687045829,-1267.19,0.00014246,2]
[342267334,1731687045839,-230.04,0.00014246,2]
[342267336,1731687045848,-500.0,0.00014246,2]
[342267337,1731687045857,-333.46,0.00014246,2]
[342267338,1731687045867,-4724.83,0.00014246,2]
[342267339,1731687045876,-500.0,0.00014246,2]
[342267340,1731687045885,-1498.316867,0.00014246,2]
[342267341,1731687045896,-1498.316867,0.00014246,2]
[342267342,1731687045906,-1498.316867,0.00014246,2]
[342267343,1731687045915,-1498.316867,0.00014246,2]
[342267344,1731687045925,-3328.97,0.00014246,2]
[342267345,1731687045935,-151.0,0.00014246,2]
[342267346,1731687045944,-151.0,0.00014246,2]
[342267347,1731687045954,-2316.91,0.00014246,2]
[342267348,1731687045964,-500.0,0.00014246,2]
[342267349,1731687045974,-802.73,0.00014246,2]
[342267350,1731687045983,-500.0,0.00014246,2]
[342267352,1731687045993,-500.0,0.00014246,2]
[342267353,1731687046002,-151.0,0.00014246,2]
[342267354,1731687046012,-151.0,0.00014246,2]
[342267355,1731687046021,-175.5137579,0.00014246,2]
[342267356,1731687046031,-936.12,0.00014246,2]
[342267358,1731687046040,-3725.15,0.00014246,2]
[342267359,1731687046049,-27232.6,0.00014246,2]
[342267360,1731687046058,-2661.49,0.00014246,2]
[342267362,1731687046067,-151.0,0.00014246,2]
[342267363,1731687046078,-151.0,0.00014246,2]
[342267365,1731687046088,-151.0,0.00014246,2]
[342267366,1731687046097,-610.07,0.00014246,2]
[342267367,1731687046106,-18339.25,0.00014246,2]
[342267368,1731687046116,-500.0,0.00014246,2]
[342267369,1731687046125,-500.0,0.00014246,2]
[342267370,1731687046135,-1178.97,0.00014246,2]
[342267371,1731687046146,-3298.07,0.00014246,2]
[342267372,1731687046155,-2346.97,0.00014246,2]
[342267374,1731687046165,-1964.52,0.00014246,2]
[342267375,1731687046174,-5221.96,0.00014246,2]
[342267377,1731687046183,-4803.15,0.00014246,2]
[342267378,1731687046193,-500.0,0.00014246,2]
[342267379,1731687046202,-2743.12,0.00014246,2]
[342267380,1731687046211,-604.28,0.00014246,2]
[342267381,1731687046220,-500.0,0.00014246,2]
[342267382,1731687046229,-500.0,0.00014258,2]
[342267383,1731687046239,-150.215,0.0001427,2]
[342267384,1731687046249,-849.145099,0.00014379,2]
[342267385,1731687046258,-849.145099,0.00014379,2]
[342267386,1731687046268,-151.0,0.00014379,2]
[342267387,1731687046277,-164.170092,0.00014379,2]
[342267388,1731687046286,-164.170092,0.00014379,2]
[342267389,1731687046296,-176.289098,0.00014379,2]
[342267390,1731687046305,-176.289098,0.00014379,2]
[342267391,1731687046314,-451.781197,0.00014379,2]
[342267392,1731687046324,-451.781197,0.00014379,2]
[342267393,1731687046333,-151.0,0.00014379,2]
[342267394,1731687046343,-1498.316867,0.00014379,2]
[342267395,1731687046352,-1498.316867,0.00014379,2]
[342267396,1731687046361,-151.0,0.00014379,2]
[342267397,1731687046370,-299.471363,0.00014384,2]
[342267398,1731687046379,-2499.37143415,0.0001442,2]
[342267399,1731687046388,-1612.28654752,0.0001442,2]
[342267400,1731687046399,-1000.0,0.000145,2]
[342267401,1731687046408,-151.0,0.000145,2]
[342267402,1731687046418,-151.0,0.0001452,2]
[342267403,1731687046427,-154.811369,0.0001452,2]
[342267404,1731687046437,-849.145099,0.0001452,2]
[342267405,1731687046446,-849.145099,0.0001452,2]
[342267406,1731687046455,-849.145099,0.0001452,2]
[342267407,1731687046465,-849.145099,0.0001452,2]
[342267408,1731687046474,-151.0,0.0001452,2]
[342267409,1731687046486,-151.0,0.0001452,2]
[342267410,1731687046495,-164.170092,0.0001452,2]
[342267411,1731687046506,-164.170092,0.0001452,2]
[342267412,1731687046517,-164.170092,0.0001452,2]
[342267413,1731687046526,-164.170091,0.0001452,2]
[342267414,1731687046540,-243.984198,0.0001452,2]
[342267415,1731687046555,-243.984198,0.0001452,2]
[342267416,1731687046564,-176.289098,0.0001452,2]
[342267417,1731687046573,-176.289098,0.0001452,2]
[342267418,1731687046582,-243.984198,0.0001452,2]
[342267419,1731687046591,-243.984198,0.0001452,2]
[342267420,1731687046601,-176.289098,0.0001452,2]
[342267421,1731687046611,-176.289088,0.0001452,2]
[342267422,1731687046620,-151.0,0.0001452,2]
[342267423,1731687046629,-151.0,0.0001452,2]
[342267424,1731687046638,-151.0,0.0001452,2]
[342267425,1731687046649,-168.537479,0.0001452,2]
[342267426,1731687046660,-168.537479,0.0001452,2]
[342267427,1731687046672,-168.537479,0.0001452,2]
[342267428,1731687046680,-168.537479,0.0001452,2]
[342267429,1731687046690,-500.0,0.0001452,2]
[342267430,1731687046699,-151.0,0.0001452,2]
[342267431,1731687046710,-151.0,0.0001452,2]
[342267432,1731687046719,-151.0,0.0001452,2]
[342267433,1731687046727,-151.0,0.0001452,2]
[342267434,1731687046737,-151.0,0.0001452,2]
[342267435,1731687046748,-532.18,0.0001452,2]
[342267436,1731687046757,-151.0,0.0001452,2]
[342267437,1731687046766,-322.46,0.0001452,2]
[342267438,1731687046775,-500.0,0.0001452,2]
[342267439,1731687046785,-500.0,0.0001452,2]
[342267440,1731687046794,-553.74,0.0001452,2]
[342267441,1731687046803,-151.0,0.0001452,2]
[342267442,1731687046812,-151.0,0.0001452,2]
[342267443,1731687046821,-151.0,0.0001452,2]
[342267444,1731687046830,-151.0,0.0001452,2]
[342267445,1731687046840,-151.0,0.0001452,2]
[342267446,1731687046849,-151.0,0.0001452,2]
[342267447,1731687046858,-151.0,0.0001452,2]
[342267448,1731687046867,-151.0,0.0001452,2]
[342267449,1731687046876,-500.0,0.0001452,2]
[342267450,1731687046885,-503.42,0.0001452,2]
[342267451,1731687046896,-2336.0,0.0001452,2]
[342267452,1731687046905,-2511.61,0.0001452,2]
[342267453,1731687046914,-2156.2,0.0001452,2]
[342267454,1731687046923,-451.781197,0.0001452,2]
[342267455,1731687046931,-451.781197,0.0001452,2]
[342267456,1731687046941,-451.781197,0.0001452,2]
[342267457,1731687046950,-451.781197,0.0001452,2]
[342267458,1731687046959,-500.0,0.0001452,2]
[342267459,1731687046968,-500.0,0.0001452,2]
[342267460,1731687046977,-500.0,0.0001452,2]
[342267461,1731687046987,-500.0,0.0001452,2]
[342267462,1731687046996,-151.0,0.0001452,2]
[342267463,1731687047006,-151.0,0.0001452,2]
[342267464,1731687047015,-614.37,0.0001452,2]
[342267465,1731687047025,-210.49,0.0001452,2]
[342267466,1731687047034,-500.0,0.0001452,2]
[342267467,1731687047043,-1267.19,0.0001452,2]
[342267468,1731687047052,-500.0,0.0001452,2]
[342267469,1731687047061,-4724.83,0.0001452,2]
[342267470,1731687047071,-500.0,0.0001452,2]
[342267471,1731687047081,-1498.316867,0.0001452,2]
[342267472,1731687047091,-1498.316867,0.0001452,2]
[342267473,1731687047100,-1498.316867,0.0001452,2]
[342267474,1731687047110,-1498.316867,0.0001452,2]
[342267475,1731687047120,-3328.97,0.0001452,2]
[342267476,1731687047130,-151.0,0.0001452,2]
[342267477,1731687047139,-151.0,0.0001452,2]
[342267478,1731687047150,-2316.91,0.0001452,2]
[342267479,1731687047160,-500.0,0.0001452,2]
[342267480,1731687047169,-802.73,0.0001452,2]
[342267481,1731687047179,-307.42,0.0001452,2]
[342267482,1731687047187,-500.0,0.0001452,2]
[342267483,1731687047196,-151.0,0.0001452,2]
[342267484,1731687047205,-151.0,0.0001452,2]
[342267485,1731687047214,-936.12,0.0001452,2]
[342267486,1731687047223,-3725.15,0.0001452,2]
[342267487,1731687047232,-27232.6,0.0001452,2]
[342267488,1731687047241,-2661.49,0.0001452,2]
[342267489,1731687047250,-151.0,0.0001452,2]
[342267490,1731687047259,-239.627112,0.0001452,2]
[342267491,1731687047268,-610.07,0.0001452,2]
[342267492,1731687047277,-18339.25,0.0001452,2]
[342267493,1731687047286,-500.0,0.0001452,2]
[342267494,1731687047295,-500.0,0.0001452,2]
[342267495,1731687047304,-1178.97,0.0001452,2]
[342267496,1731687047313,-3298.07,0.0001452,2]
[342267497,1731687047323,-2346.97,0.0001452,2]
[342267498,1731687047332,-1964.52,0.0001452,2]
[342267499,1731687047341,-5221.96,0.0001452,2]
[342267500,1731687047351,-4803.15,0.0001452,2]
[342267501,1731687047360,-447.38900493,0.0001452,2]
[342267502,1731687047369,-2743.12,0.0001452,2]
[342267503,1731687047378,-604.28,0.0001452,2]
[342267504,1731687047387,-151.0,0.00014653,2]
[342267505,1731687047400,-151.0,0.00014653,2]
[342267506,1731687047409,-153.0,0.00014672,2]
[342267507,1731687047418,-153.0,0.00014672,2]
[342267508,1731687047427,-153.0,0.00014672,2]
[342267509,1731687047436,-153.0,0.00014672,2]
[342267510,1731687047445,-153.0,0.00014672,2]
[342267511,1731687047455,-151.0,0.000147,2]
[342267512,1731687047465,-153.0,0.00014709,2]
[342267513,1731687047474,-153.0,0.00014709,2]
[342267514,1731687047483,-153.0,0.00014709,2]
[342267515,1731687047493,-153.0,0.00014709,2]
[342267516,1731687047502,-153.0,0.00014709,2]
[342267517,1731687047512,-153.0,0.00014709,2]
[342267518,1731687047521,-153.0,0.00014709,2]
[342267519,1731687047530,-153.0,0.00014709,2]
[342267520,1731687047539,-153.0,0.00014709,2]
[342267521,1731687047548,-849.145099,0.00014794,2]
[342267522,1731687047557,-849.1451,0.00014794,2]
[342267523,1731687047566,-151.0,0.00014794,2]
[342267524,1731687047575,-243.984198,0.00014794,2]
[342267525,1731687047585,-243.984198,0.00014794,2]
[342267526,1731687047594,-243.984198,0.00014794,2]
[342267527,1731687047603,-243.984198,0.00014794,2]
[342267528,1731687047612,-151.0,0.00014794,2]
[342267529,1731687047621,-151.0,0.00014794,2]
[342267530,1731687047631,-168.537479,0.00014794,2]
[342267531,1731687047643,-168.537479,0.00014794,2]
[342267532,1731687047652,-168.537479,0.00014794,2]
[342267533,1731687047666,-168.537479,0.00014794,2]
[342267534,1731687047676,-151.0,0.00014794,2]
[342267535,1731687047687,-151.0,0.00014794,2]
[342267536,1731687047696,-532.18,0.00014794,2]
[342267537,1731687047707,-500.0,0.00014794,2]
[342267538,1731687047716,-500.0,0.00014794,2]
[342267539,1731687047725,-553.74,0.00014794,2]
[342267540,1731687047738,-155.123807,0.00014794,2]
[342267541,1731687047747,-151.0,0.00014794,2]
[342267542,1731687047758,-151.0,0.00014794,2]
[342267543,1731687047768,-151.0,0.00014794,2]
[342267544,1731687047778,-223.1028,0.00014794,2]
[342267545,1731687047787,-500.0,0.00014794,2]
[342267546,1731687047797,-503.42,0.00014794,2]
[342267547,1731687047806,-2336.0,0.00014794,2]
[342267548,1731687047815,-2511.61,0.00014794,2]
[342267549,1731687047825,-2156.2,0.00014794,2]
[342267550,1731687047835,-451.781197,0.00014794,2]
[342267551,1731687047845,-451.781197,0.00014794,2]
[342267552,1731687047855,-451.781197,0.00014794,2]
[342267553,1731687047865,-451.781197,0.00014794,2]
[342267554,1731687047875,-500.0,0.00014794,2]
[342267555,1731687047885,-500.0,0.00014794,2]
[342267556,1731687047898,-500.0,0.00014794,2]
[342267557,1731687047908,-151.0,0.00014794,2]
[342267558,1731687047918,-151.0,0.00014794,2]
[342267559,1731687047928,-614.37,0.00014794,2]
[342267560,1731687047938,-500.0,0.00014794,2]
[342267561,1731687047948,-1267.19,0.00014794,2]
[342267562,1731687047958,-500.0,0.00014794,2]
[342267563,1731687047968,-4724.83,0.00014794,2]
[342267564,1731687047977,-500.0,0.00014794,2]
[342267565,1731687047987,-1498.316867,0.00014794,2]
[342267566,1731687047999,-1498.316867,0.00014794,2]
[342267567,1731687048012,-1498.316867,0.00014794,2]
[342267568,1731687048022,-3328.97,0.00014794,2]
[342267569,1731687048034,-1498.316867,0.00014794,2]
[342267570,1731687048043,-2316.91,0.00014794,2]
[342267571,1731687048054,-500.0,0.00014794,2]
[342267572,1731687048064,-802.73,0.00014794,2]
[342267573,1731687048075,-500.0,0.00014794,2]
[342267574,1731687048086,-936.12,0.00014794,2]
[342267575,1731687048096,-3725.15,0.00014794,2]
[342267576,1731687048106,-11780.97288499,0.00014794,2]
[342267577,1731687048340,-15451.62711501,0.00014794,2]
[342267578,1731687048351,-2661.49,0.00014794,2]
[342267579,1731687048360,-610.07,0.00014794,2]
[342267580,1731687048370,-18339.25,0.00014794,2]
[342267581,1731687048380,-374.88533883,0.00014794,2]
[342267582,1731687048415,-125.11466117,0.00014794,2]
[342267583,1731687048425,-500.0,0.00014794,2]
[342267584,1731687048434,-1178.97,0.00014794,2]
[342267585,1731687048444,-3298.07,0.00014794,2]
[342267586,1731687048453,-2346.97,0.00014794,2]
[342267587,1731687048462,-826.62533883,0.00014794,2]
[342267588,1731687063719,532.14,0.00010959,2]
[342267596,1731687164521,11138.03358408,0.00026,60]
[342267694,1731688232105,-977.36991119,0.00011608,2]
[342267695,1731688232116,-977.36991119,0.00011725,2]
[342267696,1731688232125,-1644.6046794,0.00012673,2]
[342267697,1731688232135,-165.18884055,0.00013598,2]
[342267698,1731688232163,-3666.521105,0.00013598,2]
[342267699,1731688232180,-300.0,0.00013697,2]
[342267700,1731688232197,-300.0,0.00013697,2]
[342267701,1731688232207,-507.05225583,0.00013698,2]
[342267702,1731688232217,-510.79903724,0.00013698,2]
[342267703,1731688232226,-500.0,0.00013698,2]
[342267704,1731688232235,-500.0,0.00013698,2]
[342267705,1731688232245,-566.00081084,0.00013698,2]
[342267706,1731688232254,-500.0,0.00013698,2]
[342267707,1731688232263,-500.0,0.00013698,2]
[342267708,1731688232273,-507.98304277,0.00013698,2]
[342267709,1731688232282,-505.28365872,0.00013698,2]
[342267710,1731688232291,-520.26598079,0.00013698,2]
[342267711,1731688232300,-500.0,0.00013698,2]
[342267712,1731688232309,-434.89772964,0.00013698,2]
[342267713,1731688232319,-515.61806297,0.00013698,2]
[342267714,1731688232328,-506.85664485,0.00013698,2]
[342267715,1731688232337,-501.19296532,0.00013698,2]
[342267716,1731688232347,-502.29885052,0.00013698,2]
[342267717,1731688232358,-506.85708299,0.00013698,2]
[342267718,1731688232368,-508.02546081,0.00013698,2]
[342267719,1731688232377,-508.74285891,0.00013698,2]
[342267720,1731688232387,-605.86774147,0.00013698,2]
[342267721,1731688232397,-500.0,0.00013698,2]
[342267722,1731688232406,-500.0,0.00013698,2]
[342267723,1731688232416,-240.53775996,0.00013698,2]
[342267724,1731688232432,-229.55086146,0.00013698,2]
[342267725,1731688232442,-509.31128673,0.00013698,2]
[342267726,1731688232451,-469.51186348,0.00013698,2]
[342267727,1731688232461,-520.15382347,0.00013698,2]
[342267728,1731688232471,-515.13619133,0.00013698,2]
[342267729,1731688232480,-500.0,0.00013698,2]
[342267730,1731688232490,-520.5692285,0.00013698,2]
[342267731,1731688232500,-500.0,0.00013698,2]
[342267732,1731688232509,-500.0,0.00013698,2]
[342267733,1731688232519,-313.72472984,0.00013698,2]
[342267734,1731688232528,-500.0,0.00013698,2]
[342267735,1731688232538,-500.0,0.00013698,2]
[342267736,1731688232548,-500.0,0.00013698,2]
[342267737,1731688232557,-346.42529661,0.00013698,2]
[342267738,1731688232565,-500.0,0.00013698,2]
[342267739,1731688232574,-500.0,0.00013698,2]
[342267740,1731688232584,-500.60080684,0.00013698,2]
[342267741,1731688232593,-263.89673906,0.00013698,2]
[342267742,1731688232603,-544.6843408,0.00013698,2]
[342267743,1731688232613,-500.0,0.00013698,2]
[342267744,1731688232622,-435.58682475,0.00013698,2]
[342267745,1731688232632,-649.98924244,0.00013698,2]
[342267746,1731688232642,-501.18673995,0.00013698,2]
[342267747,1731688232652,-500.0,0.00013698,2]
[342267748,1731688232661,-500.0,0.00013698,2]
[342267749,1731688232676,-500.0,0.00013698,2]
[342267750,1731688232685,-513.55120475,0.00013698,2]
[342267751,1731688232695,-500.0,0.00013698,2]
[342267752,1731688232705,-500.0,0.00013698,2]
[342267753,1731688232714,-500.0,0.00013698,2]
[342267754,1731688232723,-500.0,0.00013698,2]
[342267755,1731688232732,-500.0,0.00013698,2]
[342267756,1731688232742,-500.0,0.00013698,2]
[342267757,1731688232751,-500.0,0.00013698,2]
[342267758,1731688232760,-537.60004685,0.00013698,2]
[342267759,1731688232769,-500.0,0.00013698,2]
[342267760,1731688232778,-500.0,0.00013698,2]
[342267761,1731688232787,-500.0,0.00013698,2]
[342267762,1731688232796,-500.0,0.00013698,2]
[342267763,1731688232806,-500.0,0.00013698,2]
[342267764,1731688232815,-455.78318878,0.00013698,2]
[342267917,1731688238309,-44.21681122,0.00013698,2]
[342267918,1731688238322,-500.0,0.00013698,2]
[342267919,1731688238333,-503.70966425,0.00013698,2]
[342267920,1731688238345,-500.0,0.00013698,2]
[342267921,1731688238356,-500.0,0.00013698,2]
[342267922,1731688238367,-500.0,0.00013698,2]
[342267923,1731688238381,-500.0,0.00013698,2]
[342267924,1731688238392,-500.0,0.00013698,2]
[342267925,1731688238403,-500.0,0.00013698,2]
[342267926,1731688238415,-517.45264124,0.00013698,2]
[342267927,1731688238430,-500.0,0.00013698,2]
[342267928,1731688238442,-500.0,0.00013698,2]
[342267929,1731688238453,-500.0,0.00013698,2]
[342267930,1731688238465,-500.0,0.00013698,2]
[342267931,1731688238476,-500.0,0.00013698,2]
[342267932,1731688238487,-500.0,0.00013698,2]
[342267933,1731688238498,-2336.0,0.00013698,2]
[342267934,1731688238508,-500.0,0.00013698,2]
[342267935,1731688238518,-500.0,0.00013698,2]
[342267936,1731688238528,-340.73,0.00013698,2]
[342267937,1731688238539,-1988.35,0.00013698,2]
[342267938,1731688238550,-233.09,0.00013698,2]
[342267939,1731688238560,-500.0,0.00013698,2]
[342267940,1731688238571,-500.0,0.00013698,2]
[342267941,1731688238582,-500.0,0.00013698,2]
[342267942,1731688238592,-501.92683943,0.00013698,2]
[342267943,1731688238603,-500.0,0.00013698,2]
[342267944,1731688238614,-500.0,0.00013698,2]
[342267946,1731688238625,-500.0,0.00013698,2]
[342267948,1731688238637,-500.0,0.00013698,2]
[342267951,1731688238649,-364.59405764,0.00013698,2]
[342267953,1731688238660,-500.0,0.00013698,2]
[342267954,1731688238675,-500.0,0.00013698,2]
[342267955,1731688238685,-500.0,0.00013698,2]
[342267956,1731688238696,-500.0,0.00013698,2]
[342267957,1731688238707,-500.0,0.00013698,2]
[342267958,1731688238719,-500.0,0.00013698,2]
[342267959,1731688238730,-500.0,0.00013698,2]
[342267960,1731688238740,-3740.49,0.00013698,2]
[342267961,1731688238750,-500.0,0.00013698,2]
[342267962,1731688238760,-519.27000669,0.00013698,2]
[342267964,1731688238770,-2635.43,0.00013698,2]
[342267966,1731688238779,-500.0,0.00013698,2]
[342267968,1731688238790,-500.0,0.00013698,2]
[342267970,1731688238800,-171.91939398,0.00013698,2]
[342267972,1731688238810,-381.40687638,0.00013698,2]
[342267974,1731688238821,-504.02460643,0.00013698,2]
[342267977,1731688238833,-635.5,0.00013698,2]
[342267979,1731688238844,-500.0,0.00013698,2]
[342267981,1731688238856,-500.0,0.00013698,2]
[342267983,1731688238867,-1834.22,0.00013698,2]
[342267985,1731688238879,-500.0,0.00013698,2]
[342267987,1731688238890,-500.0,0.00013698,2]
[342267990,1731688238901,-741.09,0.00013698,2]
[342267992,1731688238911,-500.0,0.00013698,2]
[342267994,1731688238925,-2949.08,0.00013698,2]
[342267996,1731688238937,-2107.02,0.00013698,2]
[342267998,1731688238949,-4698.97910274,0.00013698,2]
[342268047,1731688240175,-11687.24996082,0.00013698,2]
[342268048,1731688240233,-5172.91093644,0.00013698,2]
[342268050,1731688240243,-500.0,0.00013698,2]
[342268052,1731688240254,-3406.23223352,0.00013698,2]
[342268097,1731688243288,-38678.03837795,0.00013561,2]
[342268098,1731688243299,-11112.34776648,0.00013698,2]
[342268099,1731688243310,-500.0,0.00013698,2]
[342268100,1731688243320,-500.0,0.00013698,2]
[342268101,1731688243331,-500.0,0.00013698,2]
[342268102,1731688243341,-154.42028711,0.00013698,2]
[342268103,1731688243351,-500.0,0.00013698,2]
[342268104,1731688243362,-526.35216279,0.00013698,2]
[342268105,1731688243373,-1602.65,0.00013698,2]
[342268106,1731688243384,-2610.97,0.00013698,2]
[342268107,1731688243394,-933.35,0.00013698,2]
[342268108,1731688243406,-500.0,0.00013698,2]
[342268109,1731688243418,-500.0,0.00013698,2]
[342268110,1731688243434,-500.0,0.00013698,2]
[342268111,1731688243446,-500.0,0.00013698,2]
[342268112,1731688243457,-2475.64,0.00013698,2]
[342268113,1731688243468,-500.0,0.00013698,2]
[342268114,1731688243478,-500.87,0.00013698,2]
[342268115,1731688243489,-4351.63,0.00013698,2]
[342268116,1731688243499,-610.70950985,0.00013698,2]
[342268117,1731688243510,-500.0,0.00013698,2]
[342268118,1731688243521,-500.0,0.00013698,2]
[342268119,1731688243533,-4002.62,0.00013698,2]
[342268121,1731688243543,-500.0,0.00013698,2]
[342268123,1731688243554,-2285.94,0.00013698,2]
[342268125,1731688243565,-1003.19,0.00013698,2]
[342268126,1731688243576,-507.34865172,0.00013698,2]
[342268127,1731688243586,-276.3504738,0.00013699,2]
[342268128,1731688243596,-245.578016,0.00013699,2]
[342268129,1731688243607,-500.0,0.00013699,2]
[342268130,1731688243617,-227.23020264,0.00013699,2]
[342268131,1731688243782,-151.0,0.00013971,2]
[342268132,1731688243793,-176.13265634,0.00013971,2]
[342268133,1731688243803,-196.56767068,0.00013971,2]
[342268134,1731688243812,-602.70972702,0.00013971,2]
[342268135,1731688243821,-204.99693489,0.00013971,2]
[342268136,1731688243830,-182.6965503,0.00013971,2]
[342268137,1731688243839,-151.0,0.00013972,2]
[342268138,1731688243849,-151.0,0.00013972,2]
[342268139,1731688243858,-500.0,0.00013972,2]
[342268140,1731688243867,-500.0,0.00013972,2]
[342268141,1731688243876,-500.0,0.00013972,2]
[342268142,1731688243885,-500.0,0.00013972,2]
[342268143,1731688243894,-397.68749428,0.00013972,2]
[342268144,1731688243910,-102.31250572,0.00013972,2]
[342268145,1731688243918,-500.0,0.00013972,2]
[342268146,1731688243930,-500.0,0.00013972,2]
[342268147,1731688243939,-500.0,0.00013972,2]
[342268148,1731688243948,-500.0,0.00013972,2]
[342268149,1731688243958,-440.73637635,0.00013972,2]
[342268150,1731688243978,-59.26362365,0.00013972,2]
[342268151,1731688243987,-523.42,0.00013972,2]
[342268152,1731688243996,-500.0,0.00013972,2]
[342268153,1731688244005,-297.65503231,0.00013972,2]
[342268160,1731688246144,-202.34496769,0.00013972,2]
[342268161,1731688246154,-438.20379113,0.00013972,2]
[342268162,1731688246163,-1263.33124118,0.00013972,2]